[Event "Nordic Chess-ch 2019"]
[Site "Sarpsborg"]
[Date "2019.06.23"]
[Round "4.2"]
[White "Urkedal, Frode Olav Olsen"]
[Black "Notkevich, Benjamin Arvola"]
[Result "1-0"]
[ECO "D41"]
[WhiteElo "2525"]
[BlackElo "2485"]
[Annotator "ChessBase"]
[PlyCount "91"]
[EventDate "2019.06.21"]
[EventType "swiss"]
[EventCountry "NOR"]
[SourceTitle "playchess.com"]
[Source "ChessBase"]
[SourceQuality "1"]
[TimeControl "40/5400+30:1800+30"]

1. d4 {[%emt 0:00:28]} Nf6 {[%emt 0:00:00]} 2. c4 {[%emt 0:00:04]} e6 {[%emt 0:00:00]} 3. Nf3 {[%emt 0:00:05]} d5 {[%emt 0:00:00]} 4. Nc3 {[%emt 0:00:05]} c5 {[%emt 0:00:00]} 5. cxd5 {[%emt 0:02:28]} Nxd5 {[%emt 0:00:00]} 6. e4 {[%emt 0:02:14]} Nxc3 {[%emt 0:00:04]} 7. bxc3 {[%emt 0:00:04]} cxd4 {[%emt 0:00:05]} 8. cxd4 {[%emt 0:00:02]} Bb4+ {[%emt 0:00:08]} 9. Bd2 {[%emt 0:00:02]} Bxd2+ {[%emt 0:00:06]} 10. Qxd2 {[%emt 0:00:06]} O-O {[%emt 0:00:06]} 11. Bc4 {[%emt 0:00:08]} Nd7 {[%emt 0:00:34]} 12. O-O {[%emt 0:00:14]} b6 {[%emt 0:00:04]} 13. Rfe1 {[%emt 0:03:36]} Bb7 {[%emt 0:00:07]} 14. Rad1 {[%emt 0:00:47]} Rc8 {[%emt 0:00:19]} 15. Bb3 {[%emt 0:00:13]} h6 {[%emt 0:03:54]} 16. h3 {[%emt 0:08:00]} Re8 {[%emt 0:06:11]} 17. Qf4 {[%emt 0:09:46]} Nf6 {[%emt 0:09:05]} 18. d5 {[%emt 0:08:38]} exd5 {[%emt 0:00:06]} 19. e5 {[%emt 0:00:04]} Nh7 {[%emt 0:01:18]} 20. Nd4 {[%emt 0:00:32]} Nf8 {[%emt 0:34:07]} 21. Nf5 {[%emt 0:06:09]} Rc5 {[%emt 0:14:35]} 22. Nd6 {[%emt 0:23:42]} Re7 {[%emt 0:00:05]} 23. Qg3 {[%emt 0:01:15]} Rec7 {[%emt 0:16:24]} 24. f4 {[%emt 0:04:13]} Rc3 {[%emt 0:07:31]} 25. Qg4 {[%emt 0:04:55]} Bc8 {[%emt 0:00:33]} 26. f5 {[%emt 0:00:47]} Qg5 {[%emt 0:02:10]} 27. Qxg5 {[%emt 0:01:34]} hxg5 {[%emt 0:00:02]} 28. e6 {[%emt 0:07:25]} fxe6 {[%emt 0:01:17]} 29. Nxc8 {[%emt 0:00:05]} Rxc8 {[%emt 0:00:35]} 30. fxe6 {[%emt 0:00:07]} Nh7 {[%emt 0:04:02]} 31. Bxd5 {[%emt 0:02:38]} Nf6 {[%emt 0:01:09]} 32. e7+ {[%emt 0:00:07]} Nxd5 {[%emt 0:00:08]} 33. e8=Q+ {[%emt 0:00:27]} Rxe8 {[%emt 0:00:02]} 34. Rxe8+ {[%emt 0:00:09]} Kf7 {[%emt 0:00:01]} 35. Ra8 {[%emt 0:00:23]} Rc5 {[%emt 0:01:54]} 36. Rxa7+ {[%emt 0:00:23]} Kg6 {[%emt 0:00:04]} 37. Rd2 {[%emt 0:01:03]} g4 {[%emt 0:00:57]} 38. hxg4 {[%emt 0:00:21]} Nf6 {[%emt 0:00:21]} 39. Rd4 {[%emt 0:00:48]} b5 {[%emt 0:00:24]} 40. Kh2 {[%emt 0:01:10]} Kh6 {[%emt 0:00:43]} 41. Rb7 {[%emt 0:34:18]} Nd5 {[%emt 0:01:33]} 42. g5+ {[%emt 0:00:00]} Kg6 {[%emt 0:00:06]} 43. Rd7 {[%emt 0:00:00]} Nc3 {[%emt 0:08:06]} 44. R4d6+ {[%emt 0:00:00]} Kh7 {[%emt 0:00:06]} 45. Rh6+ {[%emt 0:00:00]} Kg8 {[%emt 0:00:05]} 46. Rg6 {[%emt 0:00:00]} 1-0

[Event "Nordic Chess-ch 2019"]
[Site "Sarpsborg"]
[Date "2019.06.23"]
[Round "4.8"]
[White "Dragicevic, Drazen"]
[Black "Rishovd, Svein"]
[Result "1-0"]
[ECO "A13"]
[WhiteElo "2359"]
[BlackElo "2113"]
[Annotator "NA"]
[PlyCount "75"]
[EventDate "2019.06.21"]
[EventType "swiss"]
[EventCountry "NOR"]
[SourceTitle "playchess.com"]
[Source "ChessBase"]
[SourceQuality "1"]
[TimeControl "40/5400+30:1800+30"]

1. c4 {[%emt 0:06:53]} e6 {[%emt 0:00:00]} 2. g3 {[%emt 0:00:51]} d5 {[%emt 0:00:21]} 3. Bg2 {[%emt 0:00:12]} Nf6 {[%emt 0:00:11]} 4. Nf3 {[%emt 0:00:17]} dxc4 {[%emt 0:00:20]} 5. Qa4+ {[%emt 0:02:29]} c6 {[%emt 0:00:11]} 6. Qxc4 {[%emt 0:00:17]} b5 {[%emt 0:00:07]} 7. Qc2 {[%emt 0:02:07]} Bb7 {[%emt 0:00:14]} 8. O-O {[%emt 0:05:26]} Nbd7 {[%emt 0:01:14]} 9. a4 {[%emt 0:06:17]} a6 {[%emt 0:02:10]} 10. d3 $11 {[%emt 0:06:00]} Rc8 {[%emt 0:05:54]} 11. b3 {[%emt 0:04:05]} c5 {[%emt 0:05:46]} 12. axb5 {[%emt 0:10:28]} axb5 {[%emt 0:00:23]} 13. Nc3 {[%emt 0:00:55]} Qb6 {[%emt 0:02:29]} 14. Be3 {[%emt 0:03:01]} Be7 {[%emt 0:23:00]} 15. Qa2 {[%emt 0:13:31]} Nd5 {[%emt 0:09:23]} 16. Nxd5 {[%emt 0:02:01]} Bxd5 {[%emt 0:00:51]} 17. Nd2 {[%emt 0:04:35]} Bf6 {[%emt 0:09:14]} 18. Rac1 {[%emt 0:03:55]} Bxg2 {[%emt 0:00:54]} 19. Kxg2 {[%emt 0:00:02]} O-O {[%emt 0:00:37]} 20. Ne4 {[%emt 0:08:09]} Qb7 {[%emt 0:00:35]} 21. f3 {[%emt 0:00:38]} Be7 {[%emt 0:00:40]} 22. Ra1 {[%emt 0:01:02]} Ra8 {[%emt 0:09:17]} 23. Qc2 {[%emt 0:00:09]} Rfc8 {[%emt 0:00:23]} 24. Rfc1 {[%emt 0:02:10]} f5 {[%emt 0:07:47]} 25. Ng5 {[%emt 0:02:04]} Qd5 {[%emt 0:00:49]} 26. Nh3 {[%emt 0:06:12]} e5 {[%emt 0:04:47]} 27. b4 {[%emt 0:02:39]} Rxa1 {[%emt 0:06:07]} 28. Rxa1 {[%emt 0:00:03]} Nb6 {[%emt 0:00:32]} 29. Qb1 {[%emt 0:02:59]} Na4 {[%emt 0:00:58]} 30. bxc5 {[%emt 0:00:22]} Nc3 {[%emt 0:04:23]} 31. Qb2 {[%emt 0:00:12]} b4 {[%emt 0:00:05]} 32. Qxb4 {[%emt 0:01:48]} Nxe2 {[%emt 0:00:07]} 33. Ra7 {[%emt 0:01:20]} Bxc5 {[%emt 0:04:31]} 34. Bxc5 {[%emt 0:00:04]} Qxc5 {[%emt 0:00:08]} 35. Qb7 {[%emt 0:01:08]} Qf8 {[%emt 0:00:22]} 36. Ng5 {[%emt 0:00:45]} Nd4 {[%emt 0:00:12]} 37. Qd5+ {[%emt 0:00:24]} Kh8 {[%emt 0:00:25]} 38. Nf7+ {[%emt 0:00:22]} 1-0

[Event "Nordic Chess-ch 2019"]
[Site "Sarpsborg"]
[Date "2019.06.23"]
[Round "4.9"]
[White "Ernst, Thomas"]
[Black "Sjoberg, Isak"]
[Result "1-0"]
[ECO "A65"]
[WhiteElo "2342"]
[BlackElo "2222"]
[Annotator "ChessBase"]
[PlyCount "41"]
[EventDate "2019.06.21"]
[EventType "swiss"]
[EventCountry "NOR"]
[SourceTitle "playchess.com"]
[Source "ChessBase"]
[SourceQuality "1"]
[TimeControl "40/5400+30:1800+30"]

1. d4 {[%emt 0:00:00]} Nf6 {[%emt 0:02:45]} 2. c4 {[%emt 0:00:00]} g6 {[%emt 0:00:04]} 3. Nc3 {[%emt 0:00:00]} Bg7 {[%emt 0:00:23]} 4. e4 {[%emt 0:00:01]} d6 {[%emt 0:00:06]} 5. f3 {[%emt 0:00:22]} O-O {[%emt 0:01:44]} 6. Be3 {[%emt 0:00:08]} c5 {[%emt 0:00:06]} 7. Nge2 {[%emt 0:00:56]} Nc6 {[%emt 0:00:05]} 8. d5 {[%emt 0:00:13]} Ne5 {[%emt 0:05:10]} 9. Ng3 {[%emt 0:00:16]} e6 {[%emt 0:00:04]} 10. Be2 {[%emt 0:02:08]} exd5 {[%emt 0:00:05]} 11. cxd5 {[%emt 0:00:06]} a6 {[%emt 0:00:04]} 12. a4 {[%emt 0:02:02]} h5 {[%emt 0:02:57]} 13. O-O {[%emt 0:01:42]} Bd7 {[%emt 0:04:49]} 14. h3 {[%emt 0:14:41]} h4 {[%emt 0:00:04]} 15. Nh1 {[%emt 0:01:47]} b5 {[%emt 0:04:15]} 16. Bg5 {[%emt 0:01:21]} c4 {[%emt 0:03:34]} 17. Bxh4 {[%emt 0:04:17]} Qb8 {[%emt 0:18:49]} 18. Qd2 {[%emt 0:15:10]} Rc8 {[%emt 0:11:47]} 19. Bf2 {[%emt 0:11:03]} b4 {[%emt 0:06:55]} 20. Nd1 {[%emt 0:00:12]} Kh7 {[%emt 0:02:33]} 21. Bd4 {[%emt 0:02:06]} 1-0

[Event "Nordic Chess-ch 2019"]
[Site "Sarpsborg"]
[Date "2019.06.23"]
[Round "4.10"]
[White "Gonzalez, Francisco Silva"]
[Black "Cederstam Barsk, Carl"]
[Result "1/2-1/2"]
[ECO "D36"]
[WhiteElo "2095"]
[BlackElo "2334"]
[Annotator "NA"]
[PlyCount "83"]
[EventDate "2019.06.21"]
[EventType "swiss"]
[EventCountry "NOR"]
[SourceTitle "playchess.com"]
[Source "ChessBase"]
[SourceQuality "1"]
[TimeControl "40/5400+30:1800+30"]

1. d4 {[%emt 0:14:02]} d5 {[%emt 0:00:00]} 2. c4 {[%emt 0:01:07]} e6 {[%emt 0:00:00]} 3. Nc3 {[%emt 0:00:07]} Nf6 {[%emt 0:00:00]} 4. Bg5 {[%emt 0:00:07]} Be7 {[%emt 0:00:00]} 5. e3 {[%emt 0:00:08]} Nbd7 {[%emt 0:00:02]} 6. Nf3 {[%emt 0:00:07]} h6 {[%emt 0:00:06]} 7. Bh4 {[%emt 0:00:12]} O-O {[%emt 0:00:08]} 8. Qc2 {[%emt 0:00:05]} c6 {[%emt 0:02:19]} 9. cxd5 {[%emt 0:01:19]} exd5 {[%emt 0:00:15]} 10. Bd3 {[%emt 0:00:40]} Nh5 {[%emt 0:01:00]} 11. Bxe7 {[%emt 0:01:13]} Qxe7 {[%emt 0:00:01]} 12. O-O {[%emt 0:00:07]} Nhf6 {[%emt 0:00:35]} 13. Rab1 {[%emt 0:00:44]} Nb6 $14 {[%emt 0:08:52]} 14. Rfe1 {[%emt 0:02:47]} Be6 {[%emt 0:04:16]} 15. b4 {[%emt 0:07:08]} a6 {[%emt 0:07:57]} 16. a4 {[%emt 0:02:33]} Rfc8 {[%emt 0:03:24]} 17. h3 {[%emt 0:02:16]} Rc7 {[%emt 0:04:56]} 18. a5 {[%emt 0:10:04]} Nc8 {[%emt 0:09:59]} 19. Na4 {[%emt 0:00:36]} Nd6 {[%emt 0:01:18]} 20. Nc5 {[%emt 0:00:38]} Re8 {[%emt 0:03:14]} 21. Ne5 {[%emt 0:00:51]} Bc8 {[%emt 0:07:28]} 22. Rbc1 {[%emt 0:09:29]} Qd8 {[%emt 0:13:56]} 23. f3 {[%emt 0:12:11]} Kh8 {[%emt 0:02:09]} 24. Rcd1 {[%emt 0:06:35]} Nd7 {[%emt 0:09:59]} 25. f4 {[%emt 0:03:28]} Nf8 {[%emt 0:00:47]} 26. g4 {[%emt 0:05:22]} Kg8 {[%emt 0:07:28]} 27. Kg2 {[%emt 0:00:31]} Rce7 {[%emt 0:01:37]} 28. Qf2 {[%emt 0:01:44]} f6 {[%emt 0:07:18]} 29. Ng6 {[%emt 0:00:43]} Nxg6 {[%emt 0:00:26]} 30. Bxg6 {[%emt 0:00:09]} Rf8 {[%emt 0:01:12]} 31. Bd3 {[%emt 0:03:27]} f5 {[%emt 0:00:39]} 32. Qg3 {[%emt 0:04:04]} Qe8 {[%emt 0:00:43]} 33. g5 {[%emt 0:00:59]} h5 {[%emt 0:00:27]} 34. Kh2 {[%emt 0:01:15]} g6 {[%emt 0:00:13]} 35. h4 {[%emt 0:02:35]} Qd8 {[%emt 0:01:16]} 36. Qg1 {[%emt 0:00:41]} Ne4 {[%emt 0:01:39]} 37. Bxe4 {[%emt 0:01:11]} fxe4 {[%emt 0:00:45]} 38. Rd2 {[%emt 0:01:08]} Qc7 {[%emt 0:00:18]} 39. Qg3 {[%emt 0:00:08]} Bf5 {[%emt 0:00:48]} 40. Na4 {[%emt 0:00:24]} Qd6 {[%emt 0:00:16]} 41. Rb2 {[%emt 0:30:22]} Rc7 {[%emt 0:31:59]} 42. Rc1 {[%emt 0:00:40]} 1/2-1/2

[Event "Nordic Chess-ch 2019"]
[Site "Sarpsborg"]
[Date "2019.06.23"]
[Round "4.11"]
[White "Tryggestad, Andreas Garberg"]
[Black "Blauhut, Holger"]
[Result "1/2-1/2"]
[ECO "D55"]
[WhiteElo "2324"]
[BlackElo "2041"]
[Annotator "NA"]
[PlyCount "71"]
[EventDate "2019.06.21"]
[EventType "swiss"]
[EventCountry "NOR"]
[SourceTitle "playchess.com"]
[Source "ChessBase"]
[SourceQuality "1"]
[TimeControl "40/5400+30:1800+30"]

1. d4 {[%emt 0:00:00]} d5 {[%emt 0:00:00]} 2. c4 {[%emt 0:00:00]} e6 {[%emt 0:00:00]} 3. Nf3 {[%emt 0:00:00]} Nf6 {[%emt 0:00:00]} 4. Nc3 {[%emt 0:00:00]} Be7 {[%emt 0:00:00]} 5. Bg5 {[%emt 0:00:00]} h6 {[%emt 0:00:10]} 6. Bxf6 {[%emt 0:00:00]} Bxf6 {[%emt 0:00:06]} 7. e3 {[%emt 0:00:00]} O-O {[%emt 0:00:14]} 8. Qc2 {[%emt 0:00:08]} c5 {[%emt 0:01:47]} 9. O-O-O {[%emt 0:06:06]} cxd4 {[%emt 0:04:09]} 10. Nxd4 {[%emt 0:00:13]} Nc6 {[%emt 0:03:59]} 11. Nb3 $17 {[%emt 0:16:37]} Qb6 {[%emt 0:16:57]} 12. a3 {[%emt 0:02:56]} dxc4 {[%emt 0:08:54]} 13. Bxc4 {[%emt 0:00:44]} Na5 {[%emt 0:04:23]} 14. Nxa5 {[%emt 0:04:25]} Qxa5 {[%emt 0:01:57]} 15. Ne4 {[%emt 0:01:21]} Be7 {[%emt 0:00:12]} 16. Qc3 {[%emt 0:01:11]} Qxc3+ {[%emt 0:01:37]} 17. Nxc3 {[%emt 0:00:03]} a6 {[%emt 0:00:58]} 18. a4 {[%emt 0:06:06]} Rd8 {[%emt 0:03:15]} 19. Rxd8+ {[%emt 0:00:50]} Bxd8 {[%emt 0:00:04]} 20. Rd1 {[%emt 0:00:10]} Ba5 {[%emt 0:00:25]} 21. Kc2 {[%emt 0:10:58]} Kf8 {[%emt 0:02:49]} 22. Na2 {[%emt 0:18:55]} Ke7 {[%emt 0:01:36]} 23. b4 {[%emt 0:00:08]} Bc7 {[%emt 0:00:13]} 24. Nc3 {[%emt 0:00:27]} Bd7 {[%emt 0:01:02]} 25. b5 {[%emt 0:05:18]} axb5 {[%emt 0:12:24]} 26. Bxb5 {[%emt 0:00:49]} Bxb5 {[%emt 0:00:14]} 27. Nxb5 {[%emt 0:00:03]} Rc8 {[%emt 0:00:32]} 28. Kb3 {[%emt 0:15:02]} Ba5 {[%emt 0:00:31]} 29. Na3 {[%emt 0:08:28]} Rc3+ {[%emt 0:01:06]} 30. Kb2 {[%emt 0:00:00]} Rc6 {[%emt 0:00:21]} 31. Rd3 {[%emt 0:00:10]} h5 {[%emt 0:14:04]} 32. Kb3 {[%emt 0:02:23]} Rb6+ {[%emt 0:00:47]} 33. Nb5 {[%emt 0:00:11]} Rc6 {[%emt 0:01:16]} 34. Na3 {[%emt 0:00:07]} Rb6+ {[%emt 0:00:11]} 35. Nb5 {[%emt 0:00:01]} Rc6 {[%emt 0:00:06]} 36. Na3 {[%emt 0:00:04]} 1/2-1/2

[Event "Nordic Chess-ch 2019"]
[Site "Sarpsborg"]
[Date "2019.06.23"]
[Round "4.12"]
[White "Fernandez, Juan Pablo"]
[Black "Hobber, Anders"]
[Result "0-1"]
[ECO "A11"]
[WhiteElo "2066"]
[BlackElo "2282"]
[Annotator "NA"]
[PlyCount "68"]
[EventDate "2019.06.21"]
[EventType "swiss"]
[EventCountry "NOR"]
[SourceTitle "playchess.com"]
[Source "ChessBase"]
[SourceQuality "1"]
[TimeControl "40/5400+30:1800+30"]

1. c4 {[%emt 0:00:00]} c6 {[%emt 0:00:00]} 2. g3 {[%emt 0:00:00]} d5 {[%emt 0:00:00]} 3. Nf3 {[%emt 0:00:04]} Nf6 {[%emt 0:00:20]} 4. Bg2 {[%emt 0:00:15]} Bg4 {[%emt 0:00:34]} 5. Ne5 {[%emt 0:00:15]} Be6 {[%emt 0:00:05]} 6. cxd5 {[%emt 0:00:30]} Bxd5 {[%emt 0:00:13]} 7. Nf3 {[%emt 0:00:08]} c5 {[%emt 0:01:11]} 8. Nc3 {[%emt 0:00:35]} Bc6 {[%emt 0:00:31]} 9. O-O {[%emt 0:00:29]} Nbd7 {[%emt 0:04:58]} 10. d3 {[%emt 0:01:42]} e6 {[%emt 0:04:43]} 11. e4 {[%emt 0:00:28]} Be7 {[%emt 0:11:25]} 12. Qe2 {[%emt 0:00:53]} O-O $14 {[%emt 0:01:35]} 13. Rd1 {[%emt 0:03:00]} e5 {[%emt 0:01:34]} 14. Nh4 {[%emt 0:12:59]} Re8 {[%emt 0:08:29]} 15. Nf5 {[%emt 0:04:32]} Nf8 {[%emt 0:06:05]} 16. Bh3 {[%emt 0:12:36]} Ne6 {[%emt 0:02:54]} 17. Nxe7+ {[%emt 0:02:45]} Qxe7 {[%emt 0:00:37]} 18. Bxe6 {[%emt 0:03:44]} Qxe6 {[%emt 0:01:26]} 19. Be3 {[%emt 0:01:44]} b6 {[%emt 0:01:15]} 20. f3 {[%emt 0:05:58]} Nd7 {[%emt 0:01:55]} 21. Qf2 {[%emt 0:01:56]} Rad8 {[%emt 0:03:00]} 22. a4 {[%emt 0:03:27]} a5 {[%emt 0:01:00]} 23. Qc2 {[%emt 0:03:30]} Nb8 {[%emt 0:10:05]} 24. Nb1 {[%emt 0:05:49]} Na6 {[%emt 0:02:20]} 25. Bd2 {[%emt 0:00:22]} Qd7 {[%emt 0:02:48]} 26. Bc3 {[%emt 0:02:52]} c4 {[%emt 0:06:18]} 27. d4 {[%emt 0:02:51]} Nc5 {[%emt 0:02:02]} 28. d5 {[%emt 0:06:18]} Bxa4 {[%emt 0:01:20]} 29. Qe2 {[%emt 0:00:42]} Bxd1 {[%emt 0:00:32]} 30. Qxd1 {[%emt 0:00:07]} Nb3 {[%emt 0:03:12]} 31. Ra3 {[%emt 0:00:53]} Qb5 {[%emt 0:01:06]} 32. f4 {[%emt 0:01:43]} Qc5+ {[%emt 0:02:11]} 33. Kg2 {[%emt 0:01:30]} Qe3 {[%emt 0:00:26]} 34. Qf3 {[%emt 0:00:36]} exf4 {[%emt 0:00:34]} 0-1

[Event "Nordic Chess-ch 2019"]
[Site "Sarpsborg"]
[Date "2019.06.23"]
[Round "4.13"]
[White "Ingebretsen, Jens E"]
[Black "Kristiansen, Rune Harald"]
[Result "1-0"]
[ECO "A02"]
[WhiteElo "2263"]
[BlackElo "1849"]
[Annotator "NA"]
[PlyCount "97"]
[EventDate "2019.06.21"]
[EventType "swiss"]
[EventCountry "NOR"]
[SourceTitle "playchess.com"]
[Source "ChessBase"]
[SourceQuality "1"]
[TimeControl "40/5400+30:1800+30"]

1. b3 {[%emt 0:02:01]} Nf6 {[%emt 0:00:47]} 2. Bb2 {[%emt 0:00:14]} b6 {[%emt 0:02:19]} 3. f4 {[%emt 0:01:07]} Bb7 {[%emt 0:00:35]} 4. Nf3 {[%emt 0:00:11]} e6 {[%emt 0:01:06]} 5. e3 {[%emt 0:00:25]} Be7 {[%emt 0:03:57]} 6. Be2 {[%emt 0:00:34]} d6 {[%emt 0:03:58]} 7. O-O {[%emt 0:00:22]} h6 {[%emt 0:02:09]} 8. Qe1 {[%emt 0:03:18]} Nbd7 {[%emt 0:05:23]} 9. Nc3 {[%emt 0:01:01]} c5 {[%emt 0:03:03]} 10. Nd1 {[%emt 0:00:44]} Qc7 $14 {[%emt 0:03:11]} 11. a4 {[%emt 0:03:22]} a6 {[%emt 0:01:32]} 12. Nf2 {[%emt 0:00:22]} Rg8 {[%emt 0:03:18]} 13. h3 {[%emt 0:04:09]} Nd5 {[%emt 0:11:23]} 14. Nh2 {[%emt 0:04:45]} O-O-O {[%emt 0:07:14]} 15. a5 {[%emt 0:01:34]} b5 {[%emt 0:01:08]} 16. c4 {[%emt 0:00:38]} bxc4 {[%emt 0:00:45]} 17. Bxc4 {[%emt 0:03:27]} Nb4 {[%emt 0:03:51]} 18. Qe2 {[%emt 0:01:11]} d5 {[%emt 0:06:19]} 19. Bd3 {[%emt 0:00:09]} Bf6 {[%emt 0:09:05]} 20. Bc3 {[%emt 0:01:22]} Nxd3 {[%emt 0:04:08]} 21. Nxd3 {[%emt 0:01:10]} Bxc3 {[%emt 0:03:34]} 22. dxc3 {[%emt 0:00:07]} Qc6 {[%emt 0:04:36]} 23. Nf3 {[%emt 0:00:40]} f6 {[%emt 0:00:55]} 24. Rfb1 {[%emt 0:03:03]} Rde8 {[%emt 0:08:36]} 25. b4 {[%emt 0:01:47]} c4 {[%emt 0:00:19]} 26. b5 {[%emt 0:01:37]} axb5 {[%emt 0:02:32]} 27. Nb4 {[%emt 0:00:05]} Qc5 {[%emt 0:02:01]} 28. a6 {[%emt 0:01:28]} Ba8 {[%emt 0:00:10]} 29. Nc2 {[%emt 0:01:11]} e5 {[%emt 0:00:55]} 30. f5 {[%emt 0:01:23]} Kc7 {[%emt 0:03:40]} 31. Ra5 {[%emt 0:02:22]} Rb8 {[%emt 0:02:04]} 32. a7 {[%emt 0:05:30]} Rb7 {[%emt 0:00:17]} 33. Na3 {[%emt 0:00:48]} Kd8 {[%emt 0:00:35]} 34. Nxb5 {[%emt 0:02:17]} Qb6 {[%emt 0:00:12]} 35. Raa1 {[%emt 0:02:31]} Qc5 {[%emt 0:00:29]} 36. Ra5 {[%emt 0:03:03]} Qb6 {[%emt 0:00:25]} 37. Ra2 {[%emt 0:05:51]} Nc5 {[%emt 0:01:10]} 38. Qd2 {[%emt 0:02:06]} Nd3 {[%emt 0:00:24]} 39. Ne1 {[%emt 0:01:18]} Qc5 {[%emt 0:00:35]} 40. Nxd3 {[%emt 0:00:45]} cxd3 {[%emt 0:00:12]} 41. Qxd3 {[%emt 0:30:48]} Ke7 {[%emt 0:08:19]} 42. Rab2 {[%emt 0:00:00]} Rd8 {[%emt 0:03:34]} 43. Kh1 {[%emt 0:00:00]} Rdd7 {[%emt 0:02:32]} 44. Rb4 {[%emt 0:00:00]} Qc6 {[%emt 0:01:10]} 45. Qe2 {[%emt 0:00:00]} Rxb5 {[%emt 0:15:21]} 46. Rxb5 {[%emt 0:00:00]} Rxa7 {[%emt 0:00:40]} 47. Qg4 {[%emt 0:00:00]} g5 {[%emt 0:02:14]} 48. fxg6 {[%emt 0:00:00]} Ra1 {[%emt 0:00:35]} 49. Rxa1 {[%emt 0:00:00]} 1-0

[Event "Nordic Chess-ch 2019"]
[Site "Sarpsborg"]
[Date "2019.06.23"]
[Round "4.14"]
[White "Jashari, Driton"]
[Black "Vitenberg, Noam Aviv"]
[Result "0-1"]
[ECO "B13"]
[WhiteElo "1755"]
[BlackElo "2256"]
[Annotator "NA"]
[PlyCount "76"]
[EventDate "2019.06.21"]
[EventType "swiss"]
[EventCountry "NOR"]
[SourceTitle "playchess.com"]
[Source "ChessBase"]
[SourceQuality "1"]
[TimeControl "40/5400+30:1800+30"]

1. e4 {[%emt 0:02:55]} c6 {[%emt 0:00:00]} 2. d4 {[%emt 0:01:03]} d5 {[%emt 0:00:00]} 3. exd5 {[%emt 0:01:00]} cxd5 {[%emt 0:00:00]} 4. c3 {[%emt 0:01:32]} Bf5 {[%emt 0:01:06]} 5. Bd3 {[%emt 0:00:07]} Bxd3 {[%emt 0:00:17]} 6. Qxd3 {[%emt 0:00:02]} e6 {[%emt 0:00:17]} 7. Nf3 {[%emt 0:00:20]} Bd6 {[%emt 0:00:38]} 8. Nbd2 {[%emt 0:00:17]} Ne7 {[%emt 0:02:10]} 9. Nb3 {[%emt 0:00:15]} Qc7 {[%emt 0:02:17]} 10. g3 {[%emt 0:00:19]} Nbc6 {[%emt 0:00:45]} 11. Nh4 {[%emt 0:06:51]} O-O $11 {[%emt 0:04:09]} 12. f4 {[%emt 0:03:10]} f6 {[%emt 0:09:54]} 13. O-O {[%emt 0:07:46]} e5 {[%emt 0:02:51]} 14. Nf5 {[%emt 0:04:31]} e4 {[%emt 0:03:26]} 15. Nxe7+ {[%emt 0:00:05]} Nxe7 {[%emt 0:01:39]} 16. Qe2 {[%emt 0:00:28]} f5 {[%emt 0:04:07]} 17. Be3 {[%emt 0:04:48]} Rac8 {[%emt 0:01:40]} 18. Nd2 {[%emt 0:00:22]} b5 {[%emt 0:03:26]} 19. Rfc1 {[%emt 0:05:25]} g5 {[%emt 0:10:44]} 20. Rf1 {[%emt 0:03:16]} gxf4 {[%emt 0:10:21]} 21. Bxf4 {[%emt 0:04:23]} Bxf4 {[%emt 0:05:10]} 22. Rxf4 {[%emt 0:00:02]} Ng6 {[%emt 0:00:56]} 23. Rff1 {[%emt 0:00:28]} Qd6 {[%emt 0:02:56]} 24. a3 {[%emt 0:04:29]} f4 {[%emt 0:01:23]} 25. Qg4 {[%emt 0:04:00]} f3 {[%emt 0:02:54]} 26. Nxf3 {[%emt 0:00:20]} exf3 {[%emt 0:00:25]} 27. Rxf3 {[%emt 0:00:00]} Rxf3 {[%emt 0:02:06]} 28. Qxc8+ {[%emt 0:00:23]} Rf8 {[%emt 0:00:49]} 29. Qg4 {[%emt 0:00:08]} Qf6 {[%emt 0:01:22]} 30. Qe2 {[%emt 0:00:25]} Kh8 {[%emt 0:02:08]} 31. Re1 {[%emt 0:00:02]} Kg7 {[%emt 0:01:48]} 32. h4 {[%emt 0:07:35]} h5 {[%emt 0:01:14]} 33. Kg2 {[%emt 0:00:10]} Qf5 {[%emt 0:02:11]} 34. b3 {[%emt 0:07:13]} Kh7 {[%emt 0:00:30]} 35. c4 {[%emt 0:00:30]} Nxh4+ {[%emt 0:02:29]} 36. gxh4 {[%emt 0:04:39]} Rg8+ {[%emt 0:19:52]} 37. Kh1 {[%emt 0:06:27]} Qh3+ {[%emt 0:00:00]} 38. Qh2 {[%emt 0:00:03]} Qf3+ {[%emt 0:00:00]} 0-1

[Event "Nordic Chess-ch 2019"]
[Site "Sarpsborg"]
[Date "2019.06.23"]
[Round "4.15"]
[White "Altarbosh, Ward"]
[Black "Johansen, Kolbjorn-Albin"]
[Result "1-0"]
[ECO "B11"]
[WhiteElo "2250"]
[BlackElo "1690"]
[Annotator "NA"]
[PlyCount "91"]
[EventDate "2019.06.21"]
[EventType "swiss"]
[EventCountry "NOR"]
[SourceTitle "playchess.com"]
[Source "ChessBase"]
[SourceQuality "1"]
[TimeControl "40/5400+30:1800+30"]

1. e4 {[%emt 0:00:00]} c6 {[%emt 0:00:21]} 2. Nf3 {[%emt 0:00:00]} d5 {[%emt 0:00:07]} 3. Nc3 {[%emt 0:00:02]} Bg4 {[%emt 0:00:28]} 4. h3 {[%emt 0:00:21]} Bxf3 {[%emt 0:00:09]} 5. Qxf3 {[%emt 0:00:05]} e6 {[%emt 0:00:12]} 6. d3 {[%emt 0:00:22]} Nd7 {[%emt 0:00:23]} 7. Bd2 {[%emt 0:00:09]} Qb6 {[%emt 0:00:21]} 8. Be2 {[%emt 0:00:43]} g6 {[%emt 0:05:06]} 9. O-O {[%emt 0:02:32]} Bg7 {[%emt 0:00:33]} 10. Rfb1 {[%emt 0:00:08]} h6 $11 {[%emt 0:16:32]} 11. b4 {[%emt 0:01:13]} d4 {[%emt 0:09:13]} 12. Na4 {[%emt 0:00:16]} Qc7 {[%emt 0:02:09]} 13. b5 {[%emt 0:00:21]} c5 {[%emt 0:08:37]} 14. Nb2 {[%emt 0:00:20]} Ne7 {[%emt 0:04:58]} 15. Nc4 {[%emt 0:00:11]} O-O {[%emt 0:03:19]} 16. a4 {[%emt 0:00:17]} Rad8 {[%emt 0:14:00]} 17. a5 {[%emt 0:00:50]} Qb8 {[%emt 0:00:56]} 18. g3 {[%emt 0:01:26]} Ne5 {[%emt 0:02:32]} 19. Nxe5 {[%emt 0:03:54]} Bxe5 {[%emt 0:01:42]} 20. Bxh6 {[%emt 0:00:07]} Bg7 {[%emt 0:00:10]} 21. Bg5 {[%emt 0:00:08]} Rd7 {[%emt 0:05:26]} 22. h4 {[%emt 0:00:13]} f6 {[%emt 0:06:18]} 23. Qg4 {[%emt 0:03:20]} Qd6 {[%emt 0:01:38]} 24. Bf4 {[%emt 0:01:08]} e5 {[%emt 0:00:17]} 25. Bd2 {[%emt 0:00:09]} f5 {[%emt 0:00:55]} 26. Qh3 {[%emt 0:00:07]} Kf7 {[%emt 0:05:37]} 27. h5 {[%emt 0:00:05]} Ke8 {[%emt 0:02:42]} 28. h6 {[%emt 0:00:18]} Bh8 {[%emt 0:02:06]} 29. Kg2 {[%emt 0:00:06]} Kd8 {[%emt 0:01:42]} 30. h7 {[%emt 0:00:21]} f4 {[%emt 0:01:44]} 31. Bg4 {[%emt 0:00:08]} g5 {[%emt 0:01:14]} 32. Bxd7 {[%emt 0:00:48]} Qxd7 {[%emt 0:00:07]} 33. Qxd7+ {[%emt 0:00:07]} Kxd7 {[%emt 0:00:06]} 34. Rh1 {[%emt 0:00:04]} Ke6 {[%emt 0:01:55]} 35. Rh6+ {[%emt 0:00:09]} Kf7 {[%emt 0:00:50]} 36. Rah1 {[%emt 0:00:12]} Ng6 {[%emt 0:00:34]} 37. R1h5 {[%emt 0:00:24]} Bg7 {[%emt 0:00:56]} 38. h8=Q {[%emt 0:00:10]} Nxh8 {[%emt 0:01:27]} 39. Rd6 {[%emt 0:00:13]} Ke7 {[%emt 0:00:50]} 40. Rd5 {[%emt 0:02:28]} b6 {[%emt 0:01:15]} 41. Rxg5 {[%emt 0:30:05]} Bf6 {[%emt 0:09:37]} 42. Rgxe5+ {[%emt 0:00:00]} Bxe5 {[%emt 0:04:24]} 43. Rxe5+ {[%emt 0:00:00]} Kd7 {[%emt 0:00:41]} 44. Bxf4 {[%emt 0:00:00]} Ng6 {[%emt 0:01:32]} 45. Rd5+ {[%emt 1:28:30]} Kc8 {[%emt 0:00:52]} 46. axb6 {[%emt 0:00:00]} 1-0